bitfinex/quotes_ETHUSD_20251226
["timestamp","ask_amount","ask_price","bid_price","bid_amount"]
[1766772832638,0.001,2929.8,2929.1,0.03414017]
[1766772832841,0.001,2929.8,2929.2,0.37932635]
[1766772833044,0.001,2929.8,2929.3,0.03413784]
[1766772833733,0.001,2929.9,2929.3,0.03413784]
[1766772835345,0.9216,2929.9,2929.3,0.03413784]
[1766772839947,0.9216,2929.9,2929.1,0.03414017]
[1766772840143,0.9216,2929.9,2929.2,0.34482546]
[1766772840359,0.9216,2929.9,2929.3,0.03413784]
[1766772841248,0.9216,2929.9,2929.2,0.34482546]
[1766772841461,0.9206,2929.3,2928.4,3.41475965]
[1766772841764,0.9206,2929.3,2928.7,0.03414484]
[1766772842264,0.9206,2929.3,2928.7,3.44861039]
[1766772842557,0.9206,2929.6,2928.7,3.44861039]
[1766772842762,0.897,2929.9,2928.8,3.41436183]
[1766772843063,0.9206,2929.8,2928.9,3.79323056]
[1766772843371,0.9206,2929.8,2928.9,3.44837989]
[1766772844048,0.9206,2929.8,2928.9,0.03414251]
[1766772844251,0.9206,2929.8,2928.9,3.44839246]
[1766772844630,0.9206,2929.8,2929.0,0.34483925]
[1766772844853,0.9206,2929.8,2929.1,0.03414017]
[1766772845231,0.001,2929.9,2929.1,0.03414017]
[1766772846968,0.9216,2929.9,2929.1,0.03414017]
[1766772847145,0.9206,2929.8,2928.9,0.002]
[1766772847348,0.9216,2929.8,2929.0,0.34163648]
[1766772848565,0.9216,2929.8,2929.1,0.03414017]
[1766772848765,0.9216,2929.8,2929.0,0.34163648]
[1766772848971,0.9216,2929.8,2928.9,0.002]
[1766772849270,0.9216,2929.8,2928.9,3.41624173]
[1766772849446,0.9216,2929.8,2928.9,0.002]
[1766772850396,0.9216,2929.8,2928.9,0.03614251]
[1766772852046,0.9216,2929.8,2928.9,3.45037889]
[1766772852246,0.9216,2929.8,2929.0,0.34503789]
[1766772852487,0.9216,2929.8,2929.1,0.03414017]
[1766772856281,0.001,2929.8,2929.1,0.03414017]
[1766772856479,0.9783,2929.9,2929.1,0.03414017]
[1766772856684,0.9783,2929.9,2929.2,0.34482257]
[1766772856982,0.9783,2929.9,2928.9,0.002]
[1766772859149,0.9773,2929.8,2928.9,0.002]
[1766772864178,0.9773,2929.8,2928.9,0.03614251]
[1766772867285,0.9773,2929.8,2929.0,0.03414134]
[1766772868991,0.9783,2929.8,2929.0,0.03414134]
[1766772869186,0.9773,2929.7,2929.0,0.03414134]
[1766772872490,0.001,2929.8,2929.0,3.44827421]
[1766772872996,0.001,2929.8,2929.0,0.03414134]
[1766772873292,0.9783,2929.8,2929.0,0.03414134]
[1766772873457,0.9783,2929.8,2929.0,3.44827396]
[1766772874360,0.9783,2929.8,2929.1,0.3450274]
[1766772874586,0.9783,2929.8,2929.2,0.03413901]
[1766772877028,0.001,2929.9,2929.2,3.44799004]
[1766772877303,0.96511215,2930.3,2929.2,0.03413901]
[1766772877665,0.9773,2930.2,2929.1,0.3450274]
[1766772877888,0.9773,2930.0,2928.9,3.41618503]
[1766772878275,0.9773,2930.0,2929.0,3.41413145]
[1766772878965,0.88061168,2930.1,2928.9,0.002]
[1766772878966,4.41617805,2929.7,2928.9,0.002]
[1766772879167,0.88061168,2930.1,2928.9,0.002]
[1766772879168,0.9773,2929.3,2928.9,0.002]
[1766772879401,0.9773,2929.1,2928.9,0.002]
[1766772879605,0.9773,2929.1,2928.2,0.896]
[1766772882988,0.9773,2929.1,2928.3,0.0341495]
[1766772886386,0.9773,2929.1,2928.2,0.896]
[1766772886387,0.9815,2929.0,2928.2,0.896]
[1766772886586,0.9815,2928.9,2928.2,0.896]
[1766772887002,0.9815,2928.9,2928.3,0.0341495]
[1766772889913,0.9815,2928.9,2928.3,0.002]
[1766772895393,0.9815,2928.9,2927.8,0.89700793]
[1766772897626,0.9815,2928.1,2927.8,7.93e-06]
[1766772897937,0.9815,2927.9,2927.7,0.002]
[1766772898908,0.9815,2927.9,2927.8,0.002]
[1766772901198,0.9815,2927.9,2927.7,0.002]
[1766772901394,3.41495334,2928.3,2927.0,0.002]
[1766772901395,0.9815,2927.7,2927.0,0.002]
[1766772901649,0.9815,2927.7,2927.1,0.0361635]
[1766772903834,0.9815,2928.1,2927.4,4.41805727]
[1766772904042,0.9815,2928.3,2927.5,0.03415883]
[1766772906111,0.9815,2928.3,2927.3,0.03416117]
[1766772908131,0.9815,2928.3,2927.4,4.41805727]
[1766772908336,0.9815,2928.3,2927.5,0.78340619]
[1766772909932,0.9815,2928.7,2927.6,0.03415767]
[1766772914056,4.39600602,2928.7,2927.6,0.03415767]
[1766772914347,3.41450602,2928.7,2927.6,0.03415767]
[1766772914549,0.9458,2928.6,2927.6,0.03415767]
[1766772914854,0.9458,2928.5,2927.5,0.78540619]
[1766772919457,0.9458,2928.5,2927.5,0.002]
[1766772919658,4.41805727,2928.4,2927.5,0.002]
[1766772919856,4.41805727,2928.0,2927.5,0.002]
[1766772920060,0.9458,2927.7,2927.5,0.002]
[1766772920246,0.53638573,2927.6,2927.5,0.002]
[1766772920454,0.9458,2927.6,2927.1,0.002]
[1766772920635,0.9458,2927.6,2927.1,0.0361635]
[1766772921036,0.9458,2927.6,2927.1,0.002]
[1766772921965,0.9458,2927.6,2927.3,0.002]
[1766772923661,3.4152038,2928.1,2927.3,0.002]
[1766772923662,0.9458,2927.9,2927.3,0.002]
[1766772923865,4.31198723,2928.3,2927.3,0.002]
[1766772923866,0.897,2928.2,2927.3,0.002]
[1766772924062,0.897,2928.2,2927.3,0.44762208]
[1766772924271,0.897,2928.2,2927.4,0.03416]
[1766772924272,1.8428,2928.2,2927.4,0.03416]
[1766772924477,0.9458,2928.1,2927.4,0.03416]
[1766772924875,0.9458,2928.1,2927.3,0.002]
[1766772925174,0.051,2928.5,2927.3,4.42005727]
[1766772925376,0.9458,2928.4,2927.5,4.41805727]
[1766772925552,0.9458,2928.4,2927.6,0.03415767]
[1766772925752,0.9458,2928.4,2927.7,0.0341565]
[1766772925954,0.9458,2928.4,2927.3,0.03616117]
[1766772926249,0.9458,2928.4,2927.3,3.45226308]
[1766772926472,0.9458,2928.4,2927.4,0.43492631]
[1766772926652,0.9458,2928.4,2927.5,0.03415883]
[1766772928981,5.36385727,2928.3,2927.4,0.43492631]
[1766772929187,0.9458,2928.2,2927.3,0.002]
[1766772929683,0.9458,2928.0,2927.3,0.002]
[1766772931891,5.36385727,2928.0,2927.3,0.002]
[1766772932065,0.9458,2927.9,2927.3,0.002]
[1766772933269,0.9458,2927.7,2927.3,0.002]
[1766772937999,5.36385727,2928.0,2927.3,0.002]
[1766772938491,0.9458,2927.9,2927.3,0.002]
[1766772938691,0.001,2927.7,2927.3,0.002]
[1766772950305,0.001,2927.7,2927.1,0.0361635]
[1766772950306,0.9478,2927.6,2927.1,0.0361635]
[1766772950506,0.9478,2927.6,2926.6,0.002]
[1766772950507,0.9478,2927.3,2926.6,0.002]
[1766772950806,0.9478,2926.9,2926.3,0.002]
[1766772951008,0.9478,2926.9,2926.2,0.002]
[1766772951009,0.98196365,2926.8,2926.2,0.002]
[1766772951306,0.9478,2926.6,2926.0,0.897]
[1766772951493,0.98196365,2926.5,2925.6,0.897]
[1766772951879,0.03416365,2926.5,2925.7,0.03417985]
[1766772952089,0.9478,2926.8,2925.7,0.03417985]
[1766772952290,0.03416365,2926.7,2925.7,0.03417985]
[1766772953390,0.03416365,2926.7,2925.8,3.41786861]
[1766772953610,0.897,2927.1,2926.0,0.34198686]
[1766772953611,1.8448,2927.1,2926.0,0.34198686]
[1766772953790,1.8448,2927.1,2926.1,0.03417518]
[1766772954110,0.9478,2927.0,2926.1,0.03417518]
[1766772954814,0.9478,2927.0,2925.9,0.03617751]
[1766772955614,0.9478,2927.0,2925.9,3.45385803]
[1766772955908,0.9478,2927.0,2926.0,0.3453858]
[1766772955909,1.13728,2927.0,2926.0,0.3453858]
[1766772956090,1.13728,2927.0,2926.1,0.03417518]
[1766772956288,1.13728,2927.0,2925.9,0.03617751]
[1766772956904,1.13728,2927.0,2925.9,3.45391271]
[1766772957711,1.13728,2927.0,2925.9,0.03617751]
[1766772958019,0.9478,2926.8,2925.9,0.03617751]
[1766772959124,0.9478,2927.4,2926.0,4.42186852]
[1766772959286,0.9478,2927.4,2926.1,0.93117518]
[1766772961323,0.9478,2927.4,2926.2,3.4174014]
[1766772961620,0.9478,2927.4,2926.3,0.03417284]
[1766772961919,0.9478,2927.3,2926.4,0.34515742]
[1766772962093,0.9478,2927.3,2926.5,0.03417051]
[1766772964292,4.42186852,2927.3,2926.5,0.03417051]
[1766772964532,5.36966852,2927.0,2926.1,0.897]
[1766772964691,0.98197051,2926.9,2926.1,0.897]
[1766772964891,0.98197051,2926.9,2926.2,0.46563357]
[1766772968222,0.98197051,2926.9,2926.2,3.88300498]
[1766772968630,0.98197051,2927.2,2926.2,3.88300498]
[1766772968993,0.9478,2927.2,2926.2,7.30040638]
[1766772969303,0.9478,2927.2,2926.3,0.81974064]
[1766772969499,0.03417051,2927.1,2926.3,0.81974064]
[1766772969713,0.03417051,2927.1,2926.4,0.03417167]
[1766772970494,0.03417051,2927.1,2926.4,3.45128593]
[1766772970694,0.03417051,2927.1,2926.5,0.42710266]
[1766772970896,0.03417051,2927.1,2926.6,0.03416934]
[1766772973498,0.03517051,2927.1,2926.6,0.03416934]
[1766772975326,1.00267051,2927.1,2926.6,0.03416934]
[1766772975629,1.00267051,2927.1,2926.3,0.81974064]
[1766772976128,1.00267051,2927.1,2926.3,4.23699141]
[1766772976327,1.00267051,2927.1,2926.4,0.42369914]
[1766772976701,0.9685,2927.1,2926.5,0.03417051]
[1766772976900,0.001,2927.3,2926.5,3.45115521]
[1766772977229,0.001,2927.7,2926.6,3.41693182]
[1766772977424,1.49659616,2927.7,2926.7,0.72097997]
[1766772977601,1.53076667,2927.7,2926.7,0.72097997]
[1766772977924,0.9675,2927.6,2926.7,0.72097997]
[1766772978426,0.03417051,2927.5,2926.7,0.72097997]
[1766772978623,0.9675,2927.4,2926.7,0.72097997]
[1766772978830,1.00167051,2927.3,2926.7,0.72097997]
[1766772979905,1.00167051,2927.3,2926.7,0.6868118]
[1766772980202,1.00167051,2927.3,2926.6,0.897]
[1766772981132,1.00267051,2927.3,2926.6,0.897]
[1766772983418,1.00267051,2927.3,2926.7,0.03416817]
[1766772984322,0.03517051,2927.3,2926.7,0.03416817]
[1766772984540,0.001,2927.3,2926.7,0.03416817]
[1766772984839,0.03417051,2927.5,2926.8,0.43480958]
[1766772985004,0.03417051,2927.5,2926.9,0.03416584]
[1766772985405,1.00167051,2927.5,2926.9,0.03416584]
[1766772987959,1.00267051,2927.5,2926.9,0.03416584]
[1766772988450,1.00267051,2927.5,2926.7,0.03416817]
[1766772988755,1.00267051,2927.5,2926.7,0.46897242]
[1766772989155,0.9675,2927.0,2926.1,0.002]
[1766772989456,4.42186852,2927.1,2926.1,0.03617518]
[1766772989457,1.00167051,2926.9,2926.1,0.03617518]
[1766772990158,1.00167051,2926.9,2926.1,0.002]
[1766772992133,1.00167051,2926.9,2926.1,0.03617518]
[1766772992349,1.00167051,2926.9,2926.1,0.47145437]
[1766772995362,1.00167051,2926.9,2926.1,3.88896248]
[1766772995363,0.9675,2926.9,2926.1,3.88896248]
[1766772995665,0.9675,2927.2,2926.1,7.30648067]
[1766772995842,0.03417051,2927.1,2926.1,7.27230549]
[1766772996048,0.9675,2927.2,2926.2,0.03417401]
[1766772996238,0.9675,2927.2,2926.3,4.14793257]
[1766772996440,0.001,2927.3,2926.4,0.03417167]
[1766772996762,0.001,2927.3,2926.5,0.897]
[1766772997764,0.03517051,2927.3,2926.5,0.897]
[1766772998064,1.00267051,2927.3,2926.5,0.897]
[1766772998258,1.00267051,2927.3,2926.5,4.31401783]
[1766772998460,1.00267051,2927.3,2926.6,0.43140178]
[1766773006478,1.00267051,2927.3,2926.5,0.899]
[1766773007277,1.00267051,2927.3,2926.5,4.31604408]
[1766773008580,1.00267051,2927.3,2926.6,0.03416934]
[1766773008749,0.001,2927.3,2926.6,0.03416934]
[1766773009274,0.001,2927.5,2926.6,0.03416934]
[1766773009470,0.03517051,2927.5,2926.7,0.77672645]
[1766773009675,0.03517051,2927.5,2926.8,0.034167]
[1766773010376,4.42225415,2927.0,2926.5,0.899]
[1766773010571,0.0427073,2926.9,2926.5,0.002]
[1766773010770,0.48920344,2926.9,2926.5,0.002]
[1766773010969,0.9398,2926.8,2926.5,0.002]
[1766773012252,1.42900344,2926.9,2926.5,0.002]
[1766773012452,0.9398,2926.8,2926.5,0.002]
[1766773012669,1.52492576,2926.8,2926.5,0.002]
[1766773013176,0.58512576,2926.8,2926.5,0.002]
[1766773013481,0.0427073,2926.9,2926.5,0.002]
[1766773017154,0.98350146,2927.3,2926.5,0.002]
[1766773017354,0.9408,2927.3,2926.5,0.002]
[1766773017556,0.04270292,2927.2,2926.5,0.01907942]
[1766773019370,0.04270292,2927.2,2926.5,0.002]
[1766773020185,0.98250292,2927.2,2926.5,0.002]
[1766773022475,0.9398,2927.1,2926.5,0.002]
[1766773023505,0.98250584,2927.0,2926.5,0.002]
[1766773023685,0.9398,2926.6,2926.1,0.899]
[1766773024308,0.9398,2926.8,2926.2,0.01709401]
[1766773024469,0.04271021,2926.7,2926.2,0.01709401]
[1766773026097,0.001,2926.8,2926.2,3.43446317]
[1766773026312,0.98250584,2927.0,2926.3,0.77509757]
[1766773026499,0.898,2927.3,2926.4,0.01708584]
[1766773026500,0.001,2927.3,2926.4,0.01708584]
[1766773026673,0.9398,2927.2,2926.4,0.01708584]
[1766773027203,0.9398,2926.9,2926.1,0.899]
[1766773027404,0.04270876,2926.8,2926.1,0.899]
[1766773027700,0.9398,2926.8,2926.1,4.31650246]
[1766773028502,0.9398,2926.8,2926.1,4.31650107]
[1766773028900,0.0427073,2926.9,2926.2,0.01709168]
[1766773029113,0.9398,2927.2,2926.3,0.43335928]
[1766773029277,0.9398,2927.2,2926.4,0.0170835]
[1766773029599,0.9398,2927.0,2926.4,0.0170835]
[1766773029793,0.0427073,2926.9,2926.4,0.0170835]
[1766773030978,0.9398,2927.0,2926.4,0.0170835]
[1766773032680,0.0427073,2926.9,2926.4,0.0170835]
[1766773033006,0.9398,2927.0,2926.4,0.0170835]
[1766773033206,0.9398,2927.0,2926.4,0.0190835]
[1766773033386,0.9408,2927.0,2926.4,0.0190835]
[1766773034190,1.0221073,2926.9,2926.4,0.0190835]
[1766773034392,1.0221073,2926.9,2926.4,0.002]
[1766773037491,0.0427073,2926.9,2926.4,0.002]
[1766773037687,0.001,2927.0,2926.4,0.002]
[1766773044421,0.9804,2927.0,2926.4,0.002]
[1766773044622,1.0221073,2926.9,2926.4,0.002]
[1766773044831,0.9794,2926.7,2926.4,0.002]
[1766773045007,0.9794,2926.5,2926.1,0.899]
[1766773045206,0.9794,2926.5,2926.1,0.002]
[1766773045410,0.9794,2926.3,2926.1,0.002]
[1766773045608,0.04271459,2926.4,2926.1,0.002]
[1766773047146,0.04271459,2926.4,2925.7,3.41792931]
[1766773047147,0.9794,2926.1,2925.3,0.002]
[1766773047302,0.9794,2926.1,2925.3,3.42039499]
[1766773047303,1.02211897,2926.1,2925.3,3.42039499]
[1766773047624,1.02211897,2926.1,2925.4,0.0191127]
[1766773049033,1.02211897,2926.1,2925.4,3.43741003]
[1766773049206,0.9794,2926.1,2925.4,3.43741003]
[1766773049531,0.9794,2926.1,2925.5,0.343941]
[1766773049828,0.9794,2926.1,2925.6,0.01711036]
[1766773050709,0.04272043,2926.0,2925.6,0.01711036]
[1766773050914,0.04271605,2926.3,2925.6,0.01711036]
[1766773051333,0.04271605,2926.3,2925.6,0.39524437]
[1766773051707,0.9794,2926.5,2925.6,0.39524437]
[1766773051932,0.001,2926.8,2925.6,0.39524437]
[1766773051933,1.02211459,2926.4,2925.6,0.39524437]
[1766773052136,0.9794,2926.3,2925.6,0.39524437]
[1766773052334,0.04271751,2926.2,2925.6,0.01711036]
[1766773053227,1.02211751,2926.2,2925.5,0.343941]
[1766773053405,1.02211751,2926.2,2925.4,0.002]
[1766773054140,1.02211751,2926.2,2925.4,0.01911153]
[1766773054308,1.02211751,2926.2,2925.4,0.002]
[1766773054943,1.02211751,2926.2,2925.4,0.01911153]
[1766773060752,0.9794,2926.6,2925.4,6.85576313]
[1766773060956,0.9794,2926.6,2925.7,4.42225415]
[1766773061243,0.9794,2926.6,2925.8,0.03417868]
[1766773061962,0.001,2926.8,2925.9,4.42225415]
[1766773062115,0.9804,2926.8,2926.0,0.03417634]
[1766773062316,0.9804,2926.8,2926.0,0.37937801]
[1766773063147,0.02563751,2926.7,2926.0,0.37937801]
[1766773064837,0.9804,2926.8,2926.0,8.21923365]
[1766773065020,0.001,2927.0,2926.0,8.18505731]
[1766773065219,0.02663751,2927.0,2926.1,0.81850573]
[1766773065419,0.02663751,2927.0,2926.2,0.93117401]
[1766773066162,0.9597,2926.9,2926.2,0.897]
[1766773066454,0.98533751,2926.8,2926.2,0.897]
[1766773066652,0.98533751,2926.8,2926.2,1.06875057]
[1766773066845,0.9597,2926.7,2926.2,0.897]
[1766773068548,0.98533751,2926.9,2926.3,0.03417284]
[1766773069336,0.98533751,2926.9,2926.3,0.46904063]
[1766773071059,0.98533751,2926.9,2926.3,0.03417284]
[1766773072859,0.98633751,2926.9,2926.3,0.03417284]
[1766773076758,0.98633751,2926.9,2926.2,0.897]
[1766773081174,0.98633751,2926.9,2926.3,0.03417284]
[1766773090166,0.98633751,2926.9,2926.3,0.03617284]
[1766773091968,5.12241024,2929.2,2926.8,4.4242157]
[1766773091969,0.001,2927.7,2926.8,4.4242157]
[1766773092283,0.001,2927.7,2926.9,1.33942157]
[1766773092687,0.001,2928.0,2927.0,0.03416467]
[1766773092987,0.9607,2928.0,2927.0,0.03416467]
[1766773093386,0.9607,2928.0,2927.0,3.45058239]
[1766773093559,0.9607,2928.0,2927.0,0.03416467]
[1766773093762,0.9597,2927.8,2926.9,4.3135187]
[1766773095073,0.9597,2927.8,2927.0,3.4506109]
[1766773096474,0.9304,2928.0,2927.0,3.4506109]
[1766773098096,0.001,2927.8,2927.0,3.4506109]
[1766773098906,0.9304,2927.8,2927.0,3.4506109]
[1766773099093,0.9304,2927.8,2927.0,1.25301467]
[1766773099293,0.9304,2927.8,2927.0,0.03416467]
[1766773101094,0.9304,2927.8,2927.0,3.4506225]
[1766773101476,0.9304,2927.8,2927.0,0.03416467]
[1766773103911,0.9304,2927.8,2927.0,3.45062917]
[1766773105999,0.9304,2927.8,2927.0,3.45262917]
[1766773107201,0.9304,2927.8,2927.0,4.22926041]
[1766773107701,0.9304,2927.8,2927.0,0.81279591]
[1766773107900,0.9304,2927.8,2927.0,0.002]
[1766773111414,0.9304,2927.8,2927.0,0.03616467]
[1766773112103,0.001,2927.8,2927.0,4.46038037]
[1766773114109,0.001,2928.0,2927.1,6.8327013]
[1766773114290,0.001,2928.0,2927.2,0.03416233]
[1766773114482,0.001,2928.0,2927.3,0.68668636]
[1766773114683,0.001,2928.0,2927.4,0.03416]
[1766773117206,0.9304,2928.0,2927.4,0.03416]
[1766773117509,0.9304,2928.0,2927.1,3.41633798]
[1766773117805,0.9304,2928.0,2927.2,0.71764222]
[1766773117979,0.9304,2928.0,2927.2,4.13387096]
[1766773118993,0.9304,2928.0,2927.2,0.71764222]
[1766773119907,0.9304,2928.0,2927.2,4.13386174]
[1766773121107,0.9304,2928.0,2927.2,0.71764222]
[1766773123789,0.9304,2928.0,2927.2,0.03416233]
[1766773127618,0.9304,2928.0,2927.2,3.45037646]
[1766773129296,0.9304,2928.0,2927.2,0.03416233]
[1766773129619,0.9304,2928.0,2927.2,3.45037917]
[1766773129791,0.001,2928.0,2927.2,3.45037917]
[1766773129986,0.001,2928.0,2927.3,0.68686952]
[1766773130191,0.001,2928.0,2927.4,0.03416]
[1766773131394,0.9215,2928.0,2927.4,0.03416]
[1766773133834,0.9205,2927.9,2927.1,0.002]
[1766773134004,0.9205,2927.9,2927.1,0.77539546]
[1766773135027,0.9205,2927.9,2927.4,0.002]
[1766773138628,0.9205,2927.8,2927.4,0.002]
[1766773139210,0.9205,2927.8,2927.1,0.0361635]
[1766773146153,0.9205,2927.8,2927.1,3.45249303]
[1766773146318,0.9205,2927.8,2927.1,4.22929954]
[1766773146521,0.001,2928.0,2927.1,12.06674632]
[1766773146721,0.001,2928.0,2927.3,4.42109613]
[1766773146931,0.001,2928.1,2927.4,0.03416]
[1766773147646,0.001,2928.1,2927.2,0.03416233]
[1766773147847,0.001,2928.1,2927.3,1.20667452]
[1766773148025,0.001,2928.1,2927.4,0.03416]
[1766773148840,0.9215,2928.1,2927.4,0.03416]
[1766773149847,0.9215,2928.1,2927.1,0.77880651]
[1766773150044,4.42109613,2927.8,2927.1,0.77880651]
[1766773150244,0.9205,2927.5,2927.1,0.002]
[1766773151146,0.9205,2927.5,2927.3,0.002]
[1766773151523,0.9205,2927.5,2927.1,0.002]
[1766773166837,0.9215,2927.5,2927.1,0.002]
[1766773170547,0.9202,2927.9,2927.1,4.45725963]
[1766773170754,0.9202,2927.9,2927.2,0.44592596]
[1766773170934,0.9202,2927.9,2927.3,0.03416117]
[1766773171237,0.9202,2927.9,2927.1,0.0361635]
[1766773171439,0.9202,2927.9,2927.1,0.002]
[1766773171941,4.42109613,2927.8,2927.1,0.002]
[1766773172149,0.9202,2927.7,2927.1,0.002]
[1766773172357,0.9202,2927.7,2927.1,0.34405841]
[1766773173563,0.9202,2927.7,2927.1,0.002]
[1766773174769,0.001,2927.5,2927.1,0.002]
[1766773176543,0.001,2927.5,2927.1,0.0361635]
[1766773177672,0.001,2927.5,2927.1,3.45250062]
[1766773178774,0.9202,2927.9,2927.1,3.45250062]
[1766773178775,0.9202,2927.9,2927.1,7.87359675]
[1766773179070,0.001,2928.1,2927.3,4.42109613]
[1766773179268,0.001,2928.1,2927.4,0.93116]
[1766773179476,0.001,2928.1,2927.4,4.34713649]
[1766773180066,0.001,2928.1,2927.4,0.93116]
[1766773182585,0.9212,2928.1,2927.4,0.93116]
[1766773182783,0.9212,2928.1,2927.4,1.44465077]
[1766773188464,0.9212,2928.1,2927.4,0.93116]
[1766773191471,0.9212,2928.1,2927.4,0.897]
[1766773191784,0.9493,2927.9,2927.4,0.897]
[1766773192284,0.001,2928.1,2927.4,0.897]
[1766773192492,0.9503,2928.1,2927.4,0.897]
[1766773194388,0.43772524,2928.1,2927.4,0.897]
[1766773194686,0.9493,2928.0,2927.4,0.897]
[1766773196183,0.9493,2928.0,2927.5,0.03415883]
[1766773199889,0.001,2928.1,2927.5,0.03415883]
[1766773200086,0.9503,2928.1,2927.5,0.03415883]
[1766773200572,0.9503,2928.1,2927.4,0.93316]
[1766773200761,0.9503,2928.1,2927.4,0.899]
[1766773201387,0.9493,2928.0,2927.4,0.899]
[1766773201894,0.9493,2928.0,2927.5,0.03415883]
[1766773202193,0.9493,2928.0,2927.4,0.93316]
[1766773202359,0.9493,2928.0,2927.5,0.03415883]
[1766773202884,0.001,2928.1,2927.5,0.03415883]
[1766773204186,0.9503,2928.1,2927.5,0.03415883]
[1766773204370,0.9503,2928.1,2927.4,0.899]
[1766773204690,0.9493,2928.0,2927.4,0.899]
[1766773206891,0.9493,2928.0,2927.5,0.03415883]
[1766773212296,0.001,2928.1,2927.5,0.03415883]
[1766773212496,0.001,2928.2,2927.5,3.45004214]
[1766773212674,0.001,2928.2,2927.6,0.77649631]
[1766773212873,0.001,2928.2,2927.7,0.0341565]
[1766773213198,0.001,2928.0,2927.7,0.0341565]
[1766773214201,0.001,2928.3,2927.7,3.44977375]
[1766773215073,0.001,2928.3,2927.7,0.0341565]
[1766773215270,0.001,2928.3,2927.8,0.42263595]
[1766773215705,0.001,2928.3,2927.6,0.77649631]
[1766773216488,0.9687,2928.2,2927.6,0.77649631]
[1766773216816,0.9687,2928.2,2927.5,0.002]
[1766773220012,0.9687,2928.2,2927.5,0.03615883]
[1766773220511,0.9697,2928.2,2927.5,0.03615883]
[1766773222109,0.9697,2928.2,2927.5,3.45204172]
[1766773223997,0.001,2928.2,2927.5,3.45204172]
[1766773224202,0.001,2928.3,2927.6,0.43510417]
[1766773224501,0.001,2928.3,2927.7,0.0341565]
[1766773224702,0.9687,2928.2,2927.6,0.43510417]
[1766773225496,0.9687,2928.2,2927.7,0.0341565]
[1766773227112,0.001,2928.3,2927.6,3.85083684]
[1766773227305,0.001,2928.3,2927.7,0.38528368]
[1766773228116,0.9687,2928.2,2927.0,0.002]
[1766773228314,0.9687,2927.4,2926.6,3.4168632]
[1766773228492,0.9687,2927.2,2926.6,0.897]
[1766773229411,0.9687,2927.2,2926.7,0.03416817]
[1766773230093,0.9687,2927.2,2926.6,0.897]
[1766773230411,0.9687,2927.2,2926.7,0.03416817]
[1766773231116,0.9687,2927.7,2926.7,0.03416817]
[1766773231313,0.9687,2927.5,2926.7,0.03416817]
[1766773232192,0.9687,2927.5,2926.6,0.897]
[1766773232529,0.9687,2928.0,2926.9,4.42176367]
[1766773232736,0.9687,2928.0,2927.0,0.03416467]
[1766773233030,0.9687,2928.0,2927.1,1.34259283]
[1766773233236,0.9687,2928.0,2927.2,0.03416233]
[1766773238701,0.9687,2928.0,2927.1,1.34459283]
[1766773238897,0.9687,2928.0,2927.1,0.002]
[1766773238898,0.9687,2927.9,2927.1,0.002]
[1766773239100,0.9687,2927.9,2927.2,0.897]
[1766773243863,4.42176367,2927.7,2927.1,0.002]
[1766773244136,0.9232,2927.3,2926.6,0.897]
[1766773244340,4.42176367,2927.4,2926.3,0.002]
[1766773244341,0.9805,2927.0,2926.3,0.002]
[1766773245139,0.9805,2927.3,2926.4,0.5682]
[1766773245345,0.9805,2927.3,2926.6,0.5682]
[1766773246946,0.9805,2927.2,2926.3,0.60437284]
[1766773247438,0.9805,2927.2,2926.3,0.5702]
[1766773248037,0.9805,2927.2,2926.4,0.03417167]
[1766773249213,0.9805,2927.2,2926.5,0.002]
[1766773250045,0.9805,2927.1,2926.5,0.002]
[1766773250211,0.9805,2926.9,2926.3,0.002]
[1766773252112,3.41661744,2926.9,2926.3,0.002]
[1766773252328,0.9805,2926.8,2926.3,0.002]
[1766773264182,0.9815,2926.8,2926.3,0.002]
[1766773265773,0.001,2926.8,2926.3,0.5722]
[1766773270489,0.9815,2926.8,2926.3,0.5722]
[1766773271605,0.001,2926.8,2926.3,0.5722]
[1766773271789,0.001,2926.8,2926.5,0.5702]
[1766773271989,0.001,2926.8,2926.6,0.93116934]
[1766773272175,0.9805,2927.5,2926.6,1.50036934]
[1766773272378,0.9805,2927.4,2926.6,1.50036934]
[1766773274191,8.62467512,2927.5,2926.6,0.897]
[1766773274192,4.424725,2927.1,2926.6,0.897]
[1766773274379,0.9455,2927.0,2926.7,0.891]
[1766773274580,0.9455,2927.0,2926.3,0.899]
[1766773274775,0.9455,2927.0,2926.3,2.21234558]
[1766773276085,0.9455,2927.0,2926.4,0.03417167]
[1766773276794,0.9455,2927.4,2926.4,1.03107167]
[1766773277893,0.9455,2927.3,2926.4,1.03107167]
[1766773278097,0.9455,2927.3,2926.6,0.9969]
[1766773278388,0.001,2927.0,2926.6,0.9969]
[1766773279285,3.4158849,2927.5,2926.6,0.9969]
[1766773279286,0.9455,2927.5,2926.6,0.9969]
[1766773279592,0.9455,2927.4,2926.6,0.9969]
[1766773280782,0.9455,2927.4,2926.6,1.03106934]
[1766773283681,0.9455,2927.4,2926.9,5.421625]
[1766773283896,0.9455,2927.8,2927.0,1.57322717]
[1766773284274,0.9455,2927.8,2927.0,1.03106467]
[1766773284606,0.001,2927.4,2927.0,1.03106467]
[1766773285684,0.001,2927.4,2927.0,0.9969]
[1766773286085,0.001,2927.4,2926.5,0.22485173]
[1766773286086,4.424725,2927.2,2926.5,0.22485173]
[1766773286307,0.9455,2927.1,2926.5,1.92807051]
[1766773287813,0.9465,2927.4,2926.6,0.9969]
[1766773288122,0.9465,2927.4,2926.7,1.03106817]
[1766773288886,0.9465,2927.4,2926.7,0.9969]
[1766773289091,0.9455,2927.3,2926.7,0.9969]
[1766773293023,0.9455,2927.3,2926.5,0.93317051]
[1766773293322,0.9455,2927.1,2926.5,0.899]
[1766773294389,0.001,2927.4,2926.6,1.03106934]
[1766773294580,0.9465,2927.4,2926.6,1.03106934]